[Event "*** Titled Tuesday Blitz"]
[Site "Chess.com"]
[Date "2020.11.03"]
[Round "7"]
[White "esapunov"]
[Black "Vi_Los"]
[Result "1-0"]
[WhiteElo "2620"]
[BlackElo "2319"]
[TimeControl "180+1"]
[EndTime "11:19:22 PST"]
[Termination "esapunov won by resignation"]

1. c4 {[%clk 0:03:00.9]} 1... e5 {[%clk 0:02:58.7]} 2. Nf3 {[%clk 0:03:00.8]}
2... Nc6 {[%clk 0:02:56.5]} 3. Nc3 {[%clk 0:03:00.5]} 3... Nf6 {[%clk
0:02:55.2]} 4. e3 {[%clk 0:03:00.7]} 4... Bb4 {[%clk 0:02:53.1]} 5. Qc2 {[%clk
0:03:00.8]} 5... O-O {[%clk 0:02:31.9]} 6. Nd5 {[%clk 0:03:00.3]} 6... Be7
{[%clk 0:02:25.6]} 7. a3 {[%clk 0:02:59.6]} 7... d6 {[%clk 0:02:25]} 8. Bd3
{[%clk 0:02:59.7]} 8... h6 {[%clk 0:02:18.4]} 9. b4 {[%clk 0:02:59.2]} 9... Be6
{[%clk 0:02:09.3]} 10. Nxf6+ {[%clk 0:02:48.5]} 10... Bxf6 {[%clk 0:02:08.9]}
11. Bb2 {[%clk 0:02:49.1]} 11... a5 {[%clk 0:01:59.9]} 12. b5 {[%clk 0:02:47.9]}
12... Ne7 {[%clk 0:01:58.8]} 13. O-O {[%clk 0:02:43.8]} 13... g6 {[%clk
0:01:50.5]} 14. Rac1 {[%clk 0:02:40.6]} 14... b6 {[%clk 0:01:42.6]} 15. Be4
{[%clk 0:02:39]} 15... Rb8 {[%clk 0:01:39.1]} 16. d4 {[%clk 0:02:39.6]} 16...
Bg7 {[%clk 0:01:36.7]} 17. dxe5 {[%clk 0:02:39]} 17... dxe5 {[%clk 0:01:23.5]}
18. Rfd1 {[%clk 0:02:30.7]} 18... Qc8 {[%clk 0:01:18.4]} 19. Bxe5 {[%clk
0:02:29.7]} 19... f5 {[%clk 0:00:58.3]} 20. Bxg7 {[%clk 0:02:11.9]} 20... Kxg7
{[%clk 0:00:57.5]} 21. Qc3+ {[%clk 0:02:10]} 21... Kh7 {[%clk 0:00:56.8]} 22.
Bd3 {[%clk 0:01:57]} 22... Ng8 {[%clk 0:00:40.6]} 23. c5 {[%clk 0:01:48]} 23...
Qe8 {[%clk 0:00:36.3]} 24. Qe5 {[%clk 0:01:41.3]} 24... Qf7 {[%clk 0:00:34.3]}
25. cxb6 {[%clk 0:01:36.8]} 25... cxb6 {[%clk 0:00:34.1]} 26. Rc7 {[%clk
0:01:36.6]} 26... Ne7 {[%clk 0:00:33.7]} 27. Nd4 {[%clk 0:01:33]} 27... Rbc8
{[%clk 0:00:25.1]} 28. Nxe6 {[%clk 0:01:26]} 28... Rxc7 {[%clk 0:00:24.6]} 29.
Nxc7 {[%clk 0:01:26.1]} 29... Qb3 {[%clk 0:00:18.5]} 30. Be2 {[%clk 0:01:19.7]}
1-0

[Event "*** Titled Tuesday Blitz"]
[Site "Chess.com"]
[Date "2020.11.03"]
[Round "7"]
[White "AsaHoffmann"]
[Black "Neftegor"]
[Result "0-1"]
[WhiteElo "2293"]
[BlackElo "2447"]
[TimeControl "180+1"]
[EndTime "11:19:22 PST"]
[Termination "Neftegor won by resignation"]

1. d4 {[%clk 0:02:59.3]} 1... Nf6 {[%clk 0:02:59.5]} 2. Bg5 {[%clk 0:02:58.5]}
2... d5 {[%clk 0:02:59.1]} 3. Nd2 {[%clk 0:02:52.4]} 3... c5 {[%clk 0:02:58.8]}
4. e3 {[%clk 0:02:52.1]} 4... cxd4 {[%clk 0:02:58.9]} 5. exd4 {[%clk 0:02:51.9]}
5... Qb6 {[%clk 0:02:58.9]} 6. Nb3 {[%clk 0:02:51.5]} 6... Ne4 {[%clk
0:02:58.3]} 7. Be3 {[%clk 0:02:51.2]} 7... Nc6 {[%clk 0:02:52.9]} 8. Bd3 {[%clk
0:02:49.6]} 8... Bf5 {[%clk 0:02:45]} 9. Nf3 {[%clk 0:02:45]} 9... e6 {[%clk
0:02:42.1]} 10. Nh4 {[%clk 0:02:37]} 10... Bg6 {[%clk 0:02:22.6]} 11. Nxg6
{[%clk 0:02:35.8]} 11... hxg6 {[%clk 0:02:22.7]} 12. Bxe4 {[%clk 0:02:35.7]}
12... dxe4 {[%clk 0:02:22.6]} 13. d5 {[%clk 0:02:35.7]} 13... Qb5 {[%clk
0:01:41]} 14. dxc6 {[%clk 0:02:34.5]} 14... Rd8 {[%clk 0:01:40.9]} 15. Qe2
{[%clk 0:02:34]} 15... Qxc6 {[%clk 0:01:39.8]} 16. Nd4 {[%clk 0:02:20.8]} 16...
Bb4+ {[%clk 0:01:25.1]} 17. c3 {[%clk 0:02:20]} 17... Bxc3+ {[%clk 0:01:24.7]}
18. bxc3 {[%clk 0:01:28.1]} 18... Qxc3+ {[%clk 0:01:22.7]} 19. Qd2 {[%clk
0:01:24.2]} 19... Qxa1+ {[%clk 0:01:20.4]} 20. Ke2 {[%clk 0:01:23.8]} 20... Qxh1
{[%clk 0:01:13.7]} 21. Qb4 {[%clk 0:01:17.6]} 21... Qxh2 {[%clk 0:00:59.8]} 22.
Qb5+ {[%clk 0:01:09.1]} 22... Kf8 {[%clk 0:00:54]} 23. Qxb7 {[%clk 0:01:08.2]}
23... Qh5+ {[%clk 0:00:52.2]} 24. Ke1 {[%clk 0:01:03.8]} 24... Qd5 {[%clk
0:00:51.5]} 25. Qxa7 {[%clk 0:00:50.1]} 25... e5 {[%clk 0:00:43.5]} 0-1

[Event "*** Titled Tuesday Blitz"]
[Site "Chess.com"]
[Date "2020.11.03"]
[Round "7"]
[White "SantoBlue"]
[Black "NikolaGry"]
[Result "1-0"]
[WhiteElo "2886"]
[BlackElo "2628"]
[TimeControl "180+1"]
[EndTime "11:19:28 PST"]
[Termination "SantoBlue won by resignation"]

1. e4 {[%clk 0:03:00.9]} 1... e5 {[%clk 0:02:59.2]} 2. Nf3 {[%clk 0:03:00.7]}
2... d6 {[%clk 0:02:59.3]} 3. d4 {[%clk 0:03:00.1]} 3... exd4 {[%clk 0:02:59]}
4. Nxd4 {[%clk 0:02:57.9]} 4... Nf6 {[%clk 0:02:59.6]} 5. Nc3 {[%clk 0:02:58.2]}
5... g6 {[%clk 0:02:59.9]} 6. Be3 {[%clk 0:02:51.9]} 6... Bg7 {[%clk 0:02:59.4]}
7. Qd2 {[%clk 0:02:52.6]} 7... O-O {[%clk 0:02:59.6]} 8. Bh6 {[%clk 0:02:51.5]}
8... Re8 {[%clk 0:02:57.9]} 9. Bxg7 {[%clk 0:02:49.9]} 9... Nxe4 {[%clk
0:02:49.9]} 10. Qh6 {[%clk 0:02:33.8]} 10... Nf6+ {[%clk 0:02:13.3]} 11. Be2
{[%clk 0:02:31.8]} 11... Ng4 {[%clk 0:02:12.9]} 12. Qf4 {[%clk 0:02:32]} 12...
Kxg7 {[%clk 0:02:11]} 13. O-O-O {[%clk 0:02:32.4]} 13... Ne5 {[%clk 0:02:03.8]}
14. h4 {[%clk 0:02:29.2]} 14... h5 {[%clk 0:02:01.7]} 15. g4 {[%clk 0:02:20.1]}
15... Bxg4 {[%clk 0:01:53.8]} 16. Bxg4 {[%clk 0:02:20]} 16... Nxg4 {[%clk
0:01:50.2]} 17. Nd5 {[%clk 0:02:07.5]} 17... c6 {[%clk 0:01:32.3]} 18. f3 {[%clk
0:02:06.2]} 18... Nh6 {[%clk 0:01:22.1]} 19. Nc3 {[%clk 0:01:57.1]} 19... d5
{[%clk 0:01:17.1]} 20. Ne4 {[%clk 0:01:50.3]} 20... dxe4 {[%clk 0:00:50.5]} 21.
Nf5+ {[%clk 0:01:49.7]} 21... Nxf5 {[%clk 0:00:48.9]} 22. Rxd8 {[%clk
0:01:50.6]} 22... Rxd8 {[%clk 0:00:47.9]} 23. fxe4 {[%clk 0:01:51.5]} 23... Nh6
{[%clk 0:00:44.2]} 24. Qe5+ {[%clk 0:01:49.6]} 24... Kh7 {[%clk 0:00:41.1]} 25.
Qc7 {[%clk 0:01:49.6]} 25... Nd7 {[%clk 0:00:40.5]} 26. Rd1 {[%clk 0:01:49.7]}
26... Rac8 {[%clk 0:00:37.2]} 27. Qxb7 {[%clk 0:01:49.3]} 27... Ne5 {[%clk
0:00:30.8]} 28. Rxd8 {[%clk 0:01:41.8]} 28... Rxd8 {[%clk 0:00:31]} 29. Qe7
{[%clk 0:01:41.6]} 29... Rd7 {[%clk 0:00:21.3]} 30. Qxe5 {[%clk 0:01:41.3]}
30... Ng4 {[%clk 0:00:21.5]} 31. Qc5 {[%clk 0:01:39.2]} 31... Rc7 {[%clk
0:00:18.4]} 32. a4 {[%clk 0:01:36.9]} 32... f6 {[%clk 0:00:16.4]} 33. b4 {[%clk
0:01:36.7]} 33... Kg7 {[%clk 0:00:16.3]} 34. b5 {[%clk 0:01:36.6]} 34... g5
{[%clk 0:00:15.1]} 35. hxg5 {[%clk 0:01:35]} 35... h4 {[%clk 0:00:15.2]} 36.
gxf6+ {[%clk 0:01:35.1]} 36... Nxf6 {[%clk 0:00:14.7]} 37. Qg5+ {[%clk
0:01:34.7]} 37... Kf7 {[%clk 0:00:14.1]} 38. e5 {[%clk 0:01:34.7]} 1-0

[Event "*** Titled Tuesday Blitz"]
[Site "Chess.com"]
[Date "2020.11.03"]
[Round "7"]
[White "politeplayer"]
[Black "JiiHart"]
[Result "1/2-1/2"]
[WhiteElo "2225"]
[BlackElo "2082"]
[TimeControl "180+1"]
[EndTime "11:19:29 PST"]
[Termination "Game drawn by agreement"]

1. d4 {[%clk 0:03:00.9]} 1... Nf6 {[%clk 0:02:59.4]} 2. Nf3 {[%clk 0:03:00.5]}
2... e6 {[%clk 0:02:59.5]} 3. c4 {[%clk 0:03:00.4]} 3... c5 {[%clk 0:02:59.6]}
4. d5 {[%clk 0:03:00]} 4... exd5 {[%clk 0:03:00]} 5. cxd5 {[%clk 0:03:00.3]}
5... d6 {[%clk 0:03:00.6]} 6. Nc3 {[%clk 0:03:00.6]} 6... g6 {[%clk 0:03:00.8]}
7. h3 {[%clk 0:03:00.6]} 7... Bg7 {[%clk 0:03:00.7]} 8. e4 {[%clk 0:03:00.9]}
8... O-O {[%clk 0:03:00.5]} 9. Bd3 {[%clk 0:03:01.4]} 9... b5 {[%clk 0:02:56.9]}
10. Nxb5 {[%clk 0:02:54.8]} 10... Nxe4 {[%clk 0:02:55]} 11. O-O {[%clk
0:02:41.6]} 11... a6 {[%clk 0:02:34.7]} 12. Na3 {[%clk 0:02:40.2]} 12... Re8
{[%clk 0:02:21.2]} 13. Re1 {[%clk 0:02:38.2]} 13... Nf6 {[%clk 0:02:11.2]} 14.
Rxe8+ {[%clk 0:02:35.6]} 14... Nxe8 {[%clk 0:02:10.7]} 15. Nc4 {[%clk 0:02:35]}
15... Nd7 {[%clk 0:02:07.9]} 16. Bf4 {[%clk 0:02:33]} 16... Nb6 {[%clk
0:02:07.3]} 17. Qe2 {[%clk 0:02:26.8]} 17... Nxc4 {[%clk 0:02:04.5]} 18. Bxc4
{[%clk 0:02:26.4]} 18... Bb7 {[%clk 0:02:00]} 19. Re1 {[%clk 0:02:26]} 19... h6
{[%clk 0:01:49.5]} 20. Qe7 {[%clk 0:02:24]} 20... Qxe7 {[%clk 0:01:32.8]} 21.
Rxe7 {[%clk 0:02:22.5]} 21... Rb8 {[%clk 0:01:32.8]} 22. b3 {[%clk 0:02:20.3]}
22... Bf8 {[%clk 0:01:32.7]} 23. Re1 {[%clk 0:02:09.4]} 23... Nf6 {[%clk
0:01:24.9]} 24. Rd1 {[%clk 0:02:00.6]} 24... Re8 {[%clk 0:01:24.3]} 25. Kf1
{[%clk 0:01:58.5]} 25... Re4 {[%clk 0:01:19.9]} 26. Bg3 {[%clk 0:01:58.2]} 26...
a5 {[%clk 0:01:12.4]} 27. a4 {[%clk 0:01:56.7]} 27... g5 {[%clk 0:00:55.5]} 28.
Rd3 {[%clk 0:01:54.7]} 28... Kg7 {[%clk 0:00:52.4]} 29. Nd2 {[%clk 0:01:53.2]}
29... Rd4 {[%clk 0:00:46.3]} 30. Rxd4 {[%clk 0:01:50.6]} 30... cxd4 {[%clk
0:00:46.6]} 31. Nf3 {[%clk 0:01:51]} 31... d3 {[%clk 0:00:25.3]} 32. Bxd3 {[%clk
0:01:46.7]} 32... Bxd5 {[%clk 0:00:20]} 33. Nd4 {[%clk 0:01:46.9]} 33... Ne4
{[%clk 0:00:14.4]} 34. Nf5+ {[%clk 0:01:44.2]} 34... Kf6 {[%clk 0:00:11.8]} 35.
Bxe4 {[%clk 0:01:41.4]} 35... Bxe4 {[%clk 0:00:11.8]} 36. Nxd6 {[%clk
0:01:40.8]} 36... Bxd6 {[%clk 0:00:12]} 37. Bxd6 {[%clk 0:01:41.2]} 37... Bc2
{[%clk 0:00:12.6]} 1/2-1/2

[Event "*** Titled Tuesday Blitz"]
[Site "Chess.com"]
[Date "2020.11.03"]
[Round "7"]
[White "Ermito2020"]
[Black "aleksey1203borisovi4"]
[Result "0-1"]
[WhiteElo "2576"]
[BlackElo "2479"]
[TimeControl "180+1"]
[EndTime "11:19:36 PST"]
[Termination "aleksey1203borisovi4 won on time"]

1. e4 {[%clk 0:03:00.9]} 1... g6 {[%clk 0:03:00.9]} 2. d4 {[%clk 0:03:00.2]}
2... Bg7 {[%clk 0:02:58.1]} 3. Nc3 {[%clk 0:02:59.9]} 3... d6 {[%clk 0:02:58.1]}
4. Be3 {[%clk 0:03:00.3]} 4... Nc6 {[%clk 0:02:50.7]} 5. h4 {[%clk 0:02:58.8]}
5... h5 {[%clk 0:02:46.6]} 6. Qd2 {[%clk 0:02:52.1]} 6... Nf6 {[%clk 0:02:45.9]}
7. f3 {[%clk 0:02:47.9]} 7... a6 {[%clk 0:02:40.6]} 8. Nh3 {[%clk 0:02:32.2]}
8... Bxh3 {[%clk 0:02:33.8]} 9. Rxh3 {[%clk 0:02:33.1]} 9... Qd7 {[%clk
0:02:24]} 10. Rh1 {[%clk 0:02:31.7]} 10... O-O-O {[%clk 0:02:17.2]} 11. O-O-O
{[%clk 0:02:30.9]} 11... e6 {[%clk 0:02:13.5]} 12. d5 {[%clk 0:02:20.8]} 12...
exd5 {[%clk 0:02:08]} 13. exd5 {[%clk 0:02:20.2]} 13... Ne7 {[%clk 0:02:03.5]}
14. Qd4 {[%clk 0:02:19.4]} 14... Nfxd5 {[%clk 0:01:57.3]} 15. Qa7 {[%clk
0:02:17.7]} 15... Qc6 {[%clk 0:01:50.6]} 16. Nxd5 {[%clk 0:02:11.7]} 16... Nxd5
{[%clk 0:01:50.7]} 17. Bg5 {[%clk 0:02:09.2]} 17... Nb4 {[%clk 0:01:40.6]} 18.
Bd3 {[%clk 0:01:03.7]} 18... Rde8 {[%clk 0:01:40.4]} 19. a3 {[%clk 0:00:51.8]}
19... Nxd3+ {[%clk 0:01:26.4]} 20. Rxd3 {[%clk 0:00:52.7]} 20... Re2 {[%clk
0:01:17.7]} 21. Bd2 {[%clk 0:00:52.8]} 21... Rhe8 {[%clk 0:01:11]} 22. Rb3
{[%clk 0:00:51]} 22... Bh6 {[%clk 0:01:04.4]} 23. Rd1 {[%clk 0:00:43.2]} 23...
Rxd2 {[%clk 0:00:59.8]} 0-1

[Event "*** Titled Tuesday Blitz"]
[Site "Chess.com"]
[Date "2020.11.03"]
[Round "7"]
[White "vovachesss"]
[Black "Flutaga"]
[Result "1-0"]
[WhiteElo "2657"]
[BlackElo "1997"]
[TimeControl "180+1"]
[EndTime "11:19:37 PST"]
[Termination "vovachesss won by checkmate"]

1. g4 {[%clk 0:03:00.9]} 1... d5 {[%clk 0:02:55.1]} 2. Bg2 {[%clk 0:03:00.2]}
2... e6 {[%clk 0:02:55.4]} 3. c4 {[%clk 0:02:59.3]} 3... Nf6 {[%clk 0:02:43.1]}
4. h3 {[%clk 0:02:55.9]} 4... Bd6 {[%clk 0:02:41.7]} 5. Nf3 {[%clk 0:02:53.9]}
5... c5 {[%clk 0:02:39.6]} 6. cxd5 {[%clk 0:02:52]} 6... exd5 {[%clk 0:02:39.4]}
7. d4 {[%clk 0:02:51.7]} 7... Nc6 {[%clk 0:02:37.8]} 8. O-O {[%clk 0:02:51.5]}
8... h6 {[%clk 0:02:35.7]} 9. Nc3 {[%clk 0:02:51.1]} 9... O-O {[%clk 0:02:34.8]}
10. Be3 {[%clk 0:02:30.8]} 10... Qe7 {[%clk 0:02:20.3]} 11. Rc1 {[%clk
0:02:13.3]} 11... cxd4 {[%clk 0:02:01.1]} 12. Nxd4 {[%clk 0:02:05]} 12... Qe5
{[%clk 0:01:56.8]} 13. Nf3 {[%clk 0:01:59.4]} 13... Qe6 {[%clk 0:01:36.2]} 14.
Nb5 {[%clk 0:01:59.4]} 14... Bb8 {[%clk 0:01:29]} 15. Nbd4 {[%clk 0:01:56.2]}
15... Nxd4 {[%clk 0:01:27.6]} 16. Qxd4 {[%clk 0:01:55.3]} 16... Bd7 {[%clk
0:01:16.2]} 17. Rfd1 {[%clk 0:01:54.5]} 17... Bc6 {[%clk 0:01:14.1]} 18. Qd3
{[%clk 0:01:28.5]} 18... Re8 {[%clk 0:00:56.2]} 19. b4 {[%clk 0:01:23.9]} 19...
a6 {[%clk 0:00:53.3]} 20. Nd4 {[%clk 0:01:12.8]} 20... Qe5 {[%clk 0:00:50.2]}
21. Nxc6 {[%clk 0:01:09]} 21... Qh2+ {[%clk 0:00:40.1]} 22. Kf1 {[%clk
0:01:08.9]} 22... bxc6 {[%clk 0:00:40.7]} 23. Rxc6 {[%clk 0:01:09.5]} 23... Ne4
{[%clk 0:00:12.7]} 24. Qxd5 {[%clk 0:01:04.5]} 24... Ng3+ {[%clk 0:00:07.3]} 25.
fxg3 {[%clk 0:01:04.8]} 25... Rxe3 {[%clk 0:00:06.8]} 26. Rc8+ {[%clk
0:01:05.2]} 26... Kh7 {[%clk 0:00:06.2]} 27. Qf5+ {[%clk 0:01:05.8]} 27... g6
{[%clk 0:00:05.2]} 28. Qxf7# {[%clk 0:01:06.7]} 1-0

[Event "*** Titled Tuesday Blitz"]
[Site "Chess.com"]
[Date "2020.11.03"]
[Round "7"]
[White "Alexsur1981"]
[Black "hansen"]
[Result "1-0"]
[WhiteElo "2800"]
[BlackElo "2930"]
[TimeControl "180+1"]
[EndTime "11:19:39 PST"]
[Termination "Alexsur1981 won by resignation"]

1. e4 {[%clk 0:03:00.9]} 1... c5 {[%clk 0:03:00.2]} 2. Nc3 {[%clk 0:03:00.4]}
2... e6 {[%clk 0:03:00.4]} 3. Nf3 {[%clk 0:03:00.4]} 3... a6 {[%clk 0:03:00.7]}
4. g4 {[%clk 0:03:00.6]} 4... Nc6 {[%clk 0:02:58.9]} 5. Bg2 {[%clk 0:02:59.5]}
5... Qc7 {[%clk 0:02:57.2]} 6. O-O {[%clk 0:02:58.9]} 6... Nge7 {[%clk
0:02:57.6]} 7. d3 {[%clk 0:02:56.5]} 7... Ng6 {[%clk 0:02:56.9]} 8. Ne2 {[%clk
0:02:54.8]} 8... h5 {[%clk 0:02:53.7]} 9. g5 {[%clk 0:02:54.7]} 9... h4 {[%clk
0:02:47.9]} 10. h3 {[%clk 0:02:54.9]} 10... b5 {[%clk 0:02:45.4]} 11. a4 {[%clk
0:02:54.3]} 11... b4 {[%clk 0:02:41]} 12. Nh2 {[%clk 0:02:52.2]} 12... Bb7
{[%clk 0:02:33.4]} 13. f4 {[%clk 0:02:51.8]} 13... Nd4 {[%clk 0:02:29]} 14. c3
{[%clk 0:02:45.9]} 14... Nxe2+ {[%clk 0:02:24.6]} 15. Qxe2 {[%clk 0:02:46.8]}
15... bxc3 {[%clk 0:02:25.5]} 16. bxc3 {[%clk 0:02:47]} 16... Bd6 {[%clk
0:02:26.1]} 17. Qf2 {[%clk 0:02:41.8]} 17... Bc6 {[%clk 0:02:18.3]} 18. Ng4
{[%clk 0:02:36]} 18... Rb8 {[%clk 0:02:09.2]} 19. Be3 {[%clk 0:02:25.7]} 19...
Rb3 {[%clk 0:02:07.4]} 20. Qc2 {[%clk 0:02:21.8]} 20... Rb8 {[%clk 0:01:48.5]}
21. Qd2 {[%clk 0:02:12]} 21... O-O {[%clk 0:00:55.1]} 22. d4 {[%clk 0:02:11.2]}
22... cxd4 {[%clk 0:00:54.1]} 23. cxd4 {[%clk 0:02:12.1]} 23... Qb7 {[%clk
0:00:48.7]} 24. d5 {[%clk 0:02:04.7]} 24... exd5 {[%clk 0:00:35.7]} 25. exd5
{[%clk 0:02:05.6]} 25... Bb4 {[%clk 0:00:29.3]} 26. Qd3 {[%clk 0:02:04.4]} 26...
Rfe8 {[%clk 0:00:25.7]} 27. dxc6 {[%clk 0:02:02.3]} 27... dxc6 {[%clk
0:00:26.6]} 28. Kh1 {[%clk 0:01:54.2]} 28... a5 {[%clk 0:00:24.2]} 29. Qc4
{[%clk 0:01:43]} 29... Rbc8 {[%clk 0:00:20.7]} 30. f5 {[%clk 0:01:41.7]} 30...
Ne5 {[%clk 0:00:20.2]} 31. Nxe5 {[%clk 0:01:41.4]} 31... Rxe5 {[%clk 0:00:21.1]}
32. Bd4 {[%clk 0:01:42]} 32... Ree8 {[%clk 0:00:15.4]} 33. g6 {[%clk 0:01:42.1]}
33... Red8 {[%clk 0:00:12.4]} 34. f6 {[%clk 0:01:40]} 34... Rd5 {[%clk
0:00:10.3]} 35. gxf7+ {[%clk 0:01:33]} 35... Qxf7 {[%clk 0:00:08.4]} 36. Bxd5
{[%clk 0:01:32.5]} 36... Qxd5+ {[%clk 0:00:07.2]} 37. Qxd5+ {[%clk 0:01:32.7]}
37... cxd5 {[%clk 0:00:08.1]} 38. fxg7 {[%clk 0:01:33.1]} 38... Rc4 {[%clk
0:00:08.4]} 39. Rad1 {[%clk 0:01:32.6]} 39... Rc2 {[%clk 0:00:05.7]} 40. Rf5
{[%clk 0:01:29.8]} 1-0

[Event "*** Titled Tuesday Blitz"]
[Site "Chess.com"]
[Date "2020.11.03"]
[Round "7"]
[White "Harsha_Bharathakoti"]
[Black "Yashasd1995"]
[Result "1-0"]
[WhiteElo "2810"]
[BlackElo "2579"]
[TimeControl "180+1"]
[EndTime "11:19:43 PST"]
[Termination "Harsha_Bharathakoti won by resignation"]

1. c4 {[%clk 0:03:00.9]} 1... Nf6 {[%clk 0:02:58]} 2. Nc3 {[%clk 0:02:59.8]}
2... e5 {[%clk 0:02:57.9]} 3. g3 {[%clk 0:02:59.5]} 3... Bb4 {[%clk 0:02:57.6]}
4. Bg2 {[%clk 0:02:59]} 4... Bxc3 {[%clk 0:02:57]} 5. dxc3 {[%clk 0:02:59.9]}
5... O-O {[%clk 0:02:53]} 6. Qc2 {[%clk 0:03:00.2]} 6... d6 {[%clk 0:02:51]} 7.
e4 {[%clk 0:03:00.2]} 7... Be6 {[%clk 0:02:49.5]} 8. b3 {[%clk 0:02:59.7]} 8...
Qd7 {[%clk 0:02:49.4]} 9. h3 {[%clk 0:02:59.8]} 9... h6 {[%clk 0:02:47.1]} 10.
Ne2 {[%clk 0:02:47.3]} 10... Nc6 {[%clk 0:02:37.7]} 11. g4 {[%clk 0:02:46.3]}
11... Ne7 {[%clk 0:02:27.3]} 12. Ng3 {[%clk 0:02:42.9]} 12... Ng6 {[%clk
0:02:24.8]} 13. Nf5 {[%clk 0:02:35.2]} 13... c6 {[%clk 0:02:19.1]} 14. O-O
{[%clk 0:02:30.9]} 14... d5 {[%clk 0:02:16.6]} 15. Rd1 {[%clk 0:02:24.4]} 15...
Rad8 {[%clk 0:02:11.4]} 16. cxd5 {[%clk 0:01:28.9]} 16... cxd5 {[%clk
0:02:09.6]} 17. exd5 {[%clk 0:01:29.8]} 17... Bxf5 {[%clk 0:02:04.4]} 18. Qxf5
{[%clk 0:01:30.7]} 18... Qxf5 {[%clk 0:02:04.2]} 19. gxf5 {[%clk 0:01:31.6]}
19... Nh4 {[%clk 0:02:04.2]} 20. c4 {[%clk 0:01:29.7]} 20... Nxf5 {[%clk
0:01:58.8]} 21. Bb2 {[%clk 0:01:28.6]} 21... Nd7 {[%clk 0:01:57.9]} 22. b4
{[%clk 0:01:17]} 22... b6 {[%clk 0:01:57.4]} 23. Rac1 {[%clk 0:01:17]} 23... Rc8
{[%clk 0:01:56.2]} 24. Be4 {[%clk 0:01:11.9]} 24... Nd6 {[%clk 0:01:55]} 25. Bd3
{[%clk 0:01:09.5]} 25... e4 {[%clk 0:01:53.9]} 26. Bf1 {[%clk 0:01:08.5]} 26...
f5 {[%clk 0:01:52.3]} 27. Ba3 {[%clk 0:01:09]} 27... Nb7 {[%clk 0:01:20.6]} 28.
c5 {[%clk 0:00:26.5]} 28... bxc5 {[%clk 0:01:19.8]} 29. Ba6 {[%clk 0:00:27.1]}
29... cxb4 {[%clk 0:01:19.8]} 30. Bxb7 {[%clk 0:00:22.4]} 30... Rb8 {[%clk
0:01:14.6]} 31. Bc6 {[%clk 0:00:22.4]} 31... Ne5 {[%clk 0:01:14.8]} 32. Bb2
{[%clk 0:00:23]} 32... Nf3+ {[%clk 0:01:14.8]} 33. Kf1 {[%clk 0:00:20.3]} 33...
f4 {[%clk 0:01:06]} 34. d6 {[%clk 0:00:20.5]} 34... e3 {[%clk 0:01:06.3]} 35.
Bxf3 {[%clk 0:00:20.6]} 1-0

[Event "*** Titled Tuesday Blitz"]
[Site "Chess.com"]
[Date "2020.11.03"]
[Round "7"]
[White "BanjoKazooieN64"]
[Black "Natalya_Buksa"]
[Result "1/2-1/2"]
[WhiteElo "2386"]
[BlackElo "2534"]
[TimeControl "180+1"]
[EndTime "11:19:45 PST"]
[Termination "Game drawn by repetition"]

1. e4 {[%clk 0:03:00.9]} 1... c5 {[%clk 0:02:59.5]} 2. Nc3 {[%clk 0:02:54.9]}
2... Nc6 {[%clk 0:02:59.6]} 3. Nf3 {[%clk 0:02:54.9]} 3... e6 {[%clk 0:02:58.1]}
4. d4 {[%clk 0:02:54.2]} 4... cxd4 {[%clk 0:02:57.8]} 5. Nxd4 {[%clk 0:02:54.7]}
5... Nf6 {[%clk 0:02:58.3]} 6. a3 {[%clk 0:02:53.3]} 6... Nxd4 {[%clk
0:02:55.3]} 7. Qxd4 {[%clk 0:02:52.9]} 7... a6 {[%clk 0:02:51.7]} 8. e5 {[%clk
0:02:47.6]} 8... Ng8 {[%clk 0:02:51.4]} 9. Be3 {[%clk 0:02:44.1]} 9... Qc7
{[%clk 0:02:51.5]} 10. O-O-O {[%clk 0:02:42.9]} 10... Ne7 {[%clk 0:02:51.9]} 11.
g4 {[%clk 0:02:41.1]} 11... Nc6 {[%clk 0:02:50.9]} 12. Qe4 {[%clk 0:02:41.4]}
12... Qxe5 {[%clk 0:02:49.9]} 13. Qf3 {[%clk 0:02:39.2]} 13... Bxa3 {[%clk
0:02:47.6]} 14. Bf4 {[%clk 0:02:36]} 14... Bxb2+ {[%clk 0:02:41.4]} 15. Kxb2
{[%clk 0:02:35.9]} 15... Qf6 {[%clk 0:02:39.7]} 16. g5 {[%clk 0:02:34.4]} 16...
Qf5 {[%clk 0:02:36.5]} 17. Bh3 {[%clk 0:02:30]} 17... Qa5 {[%clk 0:02:36.1]} 18.
Bd6 {[%clk 0:02:28.6]} 18... b5 {[%clk 0:02:36.5]} 19. Nd5 {[%clk 0:02:20.9]}
19... Ra7 {[%clk 0:01:59.2]} 20. Bg2 {[%clk 0:02:10.7]} 20... Qd8 {[%clk
0:01:56.9]} 21. h4 {[%clk 0:02:05.3]} 21... h6 {[%clk 0:01:47.5]} 22. Qf4 {[%clk
0:01:48.9]} 22... a5 {[%clk 0:01:40.5]} 23. Nc7+ {[%clk 0:01:26.8]} 23... Rxc7
{[%clk 0:01:39.2]} 24. Bxc7 {[%clk 0:01:27.3]} 24... Qe7 {[%clk 0:01:40.1]} 25.
Bd6 {[%clk 0:01:27.5]} 25... Qd8 {[%clk 0:01:39.6]} 26. Be4 {[%clk 0:01:14.9]}
26... Bb7 {[%clk 0:01:37.9]} 27. Kb1 {[%clk 0:01:02.5]} 27... b4 {[%clk
0:01:37.5]} 28. Rhg1 {[%clk 0:00:56.8]} 28... h5 {[%clk 0:01:34.2]} 29. g6
{[%clk 0:00:53.8]} 29... f6 {[%clk 0:01:32.6]} 30. Rge1 {[%clk 0:00:40.7]} 30...
Qb6 {[%clk 0:01:31.4]} 31. Bf5 {[%clk 0:00:36.6]} 31... a4 {[%clk 0:01:28]} 32.
Bxe6 {[%clk 0:00:35.3]} 32... b3 {[%clk 0:01:10.9]} 33. cxb3 {[%clk 0:00:27.4]}
33... Kd8 {[%clk 0:01:07.9]} 34. Bxd7 {[%clk 0:00:25.7]} 34... Qxb3+ {[%clk
0:01:07.1]} 35. Ka1 {[%clk 0:00:23.5]} 35... Qc3+ {[%clk 0:01:06]} 36. Kb1
{[%clk 0:00:24]} 36... Qb3+ {[%clk 0:01:03.9]} 37. Kc1 {[%clk 0:00:23.7]} 37...
Qc3+ {[%clk 0:01:04]} 38. Kb1 {[%clk 0:00:24.2]} 38... Qb3+ {[%clk 0:01:04.3]}
1/2-1/2